[Event "Early-Titled-Tuesday-Blitz-June-18-2024"]
[Site "Chess.com"]
[Date "2024.06.18"]
[Round "2"]
[White "Veleamater"]
[Black "koncheto"]
[Result "0-1"]
[WhiteElo "2410"]
[BlackElo "2648"]
[TimeControl "180+1"]
[EndTime "8:20:00 PDT"]
[Termination "koncheto won by resignation"]

1. g3 {[%clk 0:03:00.9]} 1... h5 {[%clk 0:02:42.1]} 2. d4 {[%clk 0:03:00.1]}
2... h4 {[%clk 0:02:42.3]} 3. gxh4 {[%clk 0:03:00.6]} 3... Rxh4 {[%clk
0:02:24.6]} 4. c4 {[%clk 0:02:59.4]} 4... e5 {[%clk 0:02:08.3]} 5. Nf3 {[%clk
0:02:54.9]} 5... Rxd4 {[%clk 0:01:53.7]} 6. Nxd4 {[%clk 0:02:54.3]} 6... exd4
{[%clk 0:01:54.6]} 7. Qxd4 {[%clk 0:02:52.1]} 7... Nc6 {[%clk 0:01:50.8]} 8.
Qe4+ {[%clk 0:02:52]} 8... Be7 {[%clk 0:01:50.7]} 9. Bg5 {[%clk 0:02:50.4]} 9...
Kf8 {[%clk 0:01:37.7]} 10. Bxe7+ {[%clk 0:02:49.8]} 10... Ncxe7 {[%clk
0:01:38.5]} 11. Nc3 {[%clk 0:02:49.1]} 11... Nf6 {[%clk 0:01:37.9]} 12. Qh4
{[%clk 0:02:47.8]} 12... b5 {[%clk 0:01:24.1]} 13. Bg2 {[%clk 0:02:40.7]} 13...
Rb8 {[%clk 0:01:21.3]} 14. cxb5 {[%clk 0:02:40.4]} 14... d5 {[%clk 0:01:08.6]}
15. Rd1 {[%clk 0:02:39.6]} 15... Be6 {[%clk 0:01:05.7]} 16. h3 {[%clk
0:02:31.3]} 16... Kg8 {[%clk 0:00:54.1]} 17. a4 {[%clk 0:02:22.9]} 17... c6
{[%clk 0:00:51.5]} 18. O-O {[%clk 0:02:18.6]} 18... c5 {[%clk 0:00:43.8]} 19.
Qg5 {[%clk 0:02:11.5]} 19... Qa5 {[%clk 0:00:34.3]} 20. Qd2 {[%clk 0:01:32.4]}
20... Qc7 {[%clk 0:00:21.9]} 21. e4 {[%clk 0:01:29.9]} 21... d4 {[%clk
0:00:21.2]} 22. Ne2 {[%clk 0:01:27.8]} 22... Rd8 {[%clk 0:00:16.5]} 23. f4
{[%clk 0:01:27.6]} 23... g6 {[%clk 0:00:10]} 24. Rf2 {[%clk 0:01:25.1]} 24... d3
{[%clk 0:00:08.1]} 25. Nc3 {[%clk 0:01:24.6]} 25... c4 {[%clk 0:00:08.5]} 26.
Qe3 {[%clk 0:01:23.4]} 26... Nd7 {[%clk 0:00:06.3]} 27. f5 {[%clk 0:01:20.2]}
27... gxf5 {[%clk 0:00:05.3]} 28. exf5 {[%clk 0:01:19.8]} 28... Nxf5 {[%clk
0:00:05.9]} 29. Qg5+ {[%clk 0:01:19]} 29... Ng7 {[%clk 0:00:06.1]} 30. Nd5
{[%clk 0:01:15.2]} 30... Bxd5 {[%clk 0:00:05.5]} 31. Bxd5 {[%clk 0:01:14.3]}
31... Ne5 {[%clk 0:00:05.1]} 32. Be4 {[%clk 0:01:07.1]} 32... Rd6 {[%clk
0:00:04.8]} 33. Kh1 {[%clk 0:01:02.7]} 33... Ng6 {[%clk 0:00:04.2]} 34. Rg1
{[%clk 0:00:45.8]} 34... Qd7 {[%clk 0:00:04.4]} 35. Bf5 {[%clk 0:00:38.7]} 35...
Nxf5 {[%clk 0:00:03.6]} 36. Qxf5 {[%clk 0:00:34.6]} 36... Qxf5 {[%clk
0:00:03.3]} 37. Rxf5 {[%clk 0:00:34.2]} 37... Kf8 {[%clk 0:00:02.4]} 38. Rgf1
{[%clk 0:00:29.7]} 38... Rd7 {[%clk 0:00:02.1]} 39. a5 {[%clk 0:00:28.5]} 39...
Ke8 {[%clk 0:00:01.3]} 40. b6 {[%clk 0:00:25.4]} 40... axb6 {[%clk 0:00:01.9]}
41. axb6 {[%clk 0:00:25]} 41... Rb7 {[%clk 0:00:02.2]} 42. Rb5 {[%clk
0:00:22.4]} 42... Ke7 {[%clk 0:00:01.3]} 43. Rc1 {[%clk 0:00:20.5]} 43... Kd6
{[%clk 0:00:01.3]} 44. Kg2 {[%clk 0:00:09.6]} 44... Ne5 {[%clk 0:00:01.2]} 45.
Kf2 {[%clk 0:00:08.4]} 45... f6 {[%clk 0:00:01.7]} 46. Ke3 {[%clk 0:00:08.2]}
46... Kc6 {[%clk 0:00:02.3]} 47. Rb4 {[%clk 0:00:06.8]} 47... Kc5 {[%clk
0:00:02.9]} 48. Ra4 {[%clk 0:00:06.3]} 48... Rxb6 {[%clk 0:00:03.3]} 49. Kd2
{[%clk 0:00:04.4]} 49... Rxb2+ {[%clk 0:00:03.5]} 50. Kc3 {[%clk 0:00:04.8]}
50... Rb3+ {[%clk 0:00:04]} 51. Kd2 {[%clk 0:00:04.4]} 51... Kd4 {[%clk
0:00:04.6]} 52. Kd1 {[%clk 0:00:03.1]} 52... Ke3 {[%clk 0:00:02.8]} 53. Rca1
{[%clk 0:00:02]} 53... c3 {[%clk 0:00:02.9]} 54. Rc1 {[%clk 0:00:01.6]} 54...
c2+ {[%clk 0:00:03]} 55. Rxc2 {[%clk 0:00:02.2]} 55... dxc2+ {[%clk 0:00:02.7]}
56. Kxc2 {[%clk 0:00:03.1]} 56... Rb6 {[%clk 0:00:02.3]} 57. Rh4 {[%clk
0:00:04]} 57... Rd6 {[%clk 0:00:01.1]} 58. Rh6 {[%clk 0:00:04.9]} 58... Kf4
{[%clk 0:00:01.2]} 59. Kc3 {[%clk 0:00:05.8]} 59... Kf5 {[%clk 0:00:01.8]} 60.
Kb4 {[%clk 0:00:05.7]} 60... Rd4+ {[%clk 0:00:01.8]} 61. Kc5 {[%clk 0:00:05.6]}
61... Rd3 {[%clk 0:00:02.6]} 62. h4 {[%clk 0:00:06.1]} 62... Rg3 {[%clk
0:00:03.1]} 63. Kd5 {[%clk 0:00:05.3]} 63... Rh3 {[%clk 0:00:03.2]} 64. Rh8
{[%clk 0:00:05.8]} 64... Ng4 {[%clk 0:00:02.8]} 65. h5 {[%clk 0:00:05.5]} 65...
Kg5 {[%clk 0:00:02.9]} 66. Ke6 {[%clk 0:00:05.6]} 66... Re3+ {[%clk 0:00:02.9]}
67. Kf7 {[%clk 0:00:05.1]} 67... f5 {[%clk 0:00:02.9]} 68. h6 {[%clk 0:00:05.2]}
68... Nxh6+ {[%clk 0:00:03.2]} 69. Kg7 {[%clk 0:00:05.3]} 69... Ng4 {[%clk
0:00:03.7]} 70. Kf7 {[%clk 0:00:05.6]} 70... f4 {[%clk 0:00:03.5]} 71. Rg8+
{[%clk 0:00:06.5]} 71... Kf5 {[%clk 0:00:03.9]} 72. Rh8 {[%clk 0:00:05.9]} 72...
f3 {[%clk 0:00:04]} 73. Rh5+ {[%clk 0:00:06.8]} 73... Kf4 {[%clk 0:00:04.2]} 74.
Kg6 {[%clk 0:00:07.5]} 74... Re6+ {[%clk 0:00:03.8]} 75. Kf7 {[%clk 0:00:06.8]}
75... Rh6 {[%clk 0:00:04]} 76. Rb5 {[%clk 0:00:05.2]} 76... f2 {[%clk
0:00:04.3]} 77. Rb4+ {[%clk 0:00:05.6]} 77... Kg3 {[%clk 0:00:04.9]} 78. Rb1
{[%clk 0:00:06.5]} 78... Kg2 {[%clk 0:00:05]} 0-1

[Event "Early-Titled-Tuesday-Blitz-June-18-2024"]
[Site "Chess.com"]
[Date "2024.06.18"]
[Round "2"]
[White "NigiriSushies"]
[Black "Pingah9"]
[Result "1-0"]
[WhiteElo "2303"]
[BlackElo "2496"]
[TimeControl "180+1"]
[EndTime "8:20:01 PDT"]
[Termination "NigiriSushies won by resignation"]

1. d4 {[%clk 0:03:00.9]} 1... g6 {[%clk 0:02:59.1]} 2. c4 {[%clk 0:02:58.5]}
2... Bg7 {[%clk 0:02:59.3]} 3. b3 {[%clk 0:02:58.7]} 3... c5 {[%clk 0:02:57.9]}
4. Nf3 {[%clk 0:02:55.1]} 4... Nc6 {[%clk 0:02:57.5]} 5. Bb2 {[%clk 0:02:53.6]}
5... Nh6 {[%clk 0:02:44.3]} 6. e3 {[%clk 0:02:49.6]} 6... Nf5 {[%clk 0:02:43.2]}
7. Bd3 {[%clk 0:02:49.6]} 7... cxd4 {[%clk 0:02:27.7]} 8. Bxf5 {[%clk
0:02:47.8]} 8... Qa5+ {[%clk 0:02:21.6]} 9. Nbd2 {[%clk 0:02:44.3]} 9... Qxf5
{[%clk 0:02:12.5]} 10. Nxd4 {[%clk 0:02:31.2]} 10... Qd3 {[%clk 0:01:54.9]} 11.
Qe2 {[%clk 0:02:24.1]} 11... Nb4 {[%clk 0:01:50.6]} 12. a3 {[%clk 0:01:45.6]}
12... Nc2+ {[%clk 0:01:34]} 13. Nxc2 {[%clk 0:01:45.2]} 13... Qxe2+ {[%clk
0:01:34.1]} 14. Kxe2 {[%clk 0:01:44.9]} 14... Bxb2 {[%clk 0:01:35]} 15. Rab1
{[%clk 0:01:44.7]} 15... Bg7 {[%clk 0:01:33.3]} 16. Nd4 {[%clk 0:01:43.7]} 16...
d6 {[%clk 0:01:33]} 17. Nb5 {[%clk 0:01:43.9]} 17... Kd8 {[%clk 0:01:30.7]} 18.
Nf3 {[%clk 0:01:37.7]} 18... Bf5 {[%clk 0:01:27.2]} 19. Rbd1 {[%clk 0:01:35.6]}
19... a6 {[%clk 0:01:27.1]} 20. Nbd4 {[%clk 0:01:33.8]} 20... Bd7 {[%clk
0:01:27.2]} 21. h3 {[%clk 0:01:30.1]} 21... Kc7 {[%clk 0:01:23.7]} 22. Ng5
{[%clk 0:01:26.7]} 22... Raf8 {[%clk 0:01:21]} 23. Rd2 {[%clk 0:01:11.4]} 23...
h6 {[%clk 0:01:20.2]} 24. Ne4 {[%clk 0:01:09.1]} 24... Rc8 {[%clk 0:01:18.6]}
25. Nc3 {[%clk 0:01:07.8]} 25... e6 {[%clk 0:01:16.2]} 26. Ne4 {[%clk
0:01:03.9]} 26... Rhd8 {[%clk 0:01:11.2]} 27. Nxd6 {[%clk 0:01:03.1]} 27... Kxd6
{[%clk 0:01:04.2]} 28. Nf5+ {[%clk 0:01:01.7]} 28... Ke5 {[%clk 0:01:02.7]} 29.
Nxg7 {[%clk 0:00:57.8]} 29... Kf6 {[%clk 0:01:02.9]} 30. Rhd1 {[%clk 0:00:57.5]}
30... Rc7 {[%clk 0:00:55.8]} 31. Ne8+ {[%clk 0:00:48.7]} 31... Rxe8 {[%clk
0:00:55.8]} 32. Rxd7 {[%clk 0:00:48.4]} 32... Rec8 {[%clk 0:00:55.8]} 33. g3
{[%clk 0:00:42.8]} 33... b5 {[%clk 0:00:53]} 34. cxb5 {[%clk 0:00:35.2]} 34...
Rc2+ {[%clk 0:00:52.6]} 35. R1d2 {[%clk 0:00:30]} 35... axb5 {[%clk 0:00:53.5]}
36. Rb7 {[%clk 0:00:28]} 36... R2c5 {[%clk 0:00:31.8]} 37. Rdd7 {[%clk
0:00:24.9]} 37... Rc2+ {[%clk 0:00:31.2]} 38. Kf3 {[%clk 0:00:22.9]} 38... Ra2
{[%clk 0:00:25.5]} 39. Rxf7+ {[%clk 0:00:21.9]} 39... Ke5 {[%clk 0:00:23.8]} 40.
Rxb5+ {[%clk 0:00:20.3]} 40... Kd6 {[%clk 0:00:24.3]} 41. Rf6 {[%clk 0:00:19.3]}
41... Rcc2 {[%clk 0:00:18]} 42. Kg2 {[%clk 0:00:14.4]} 42... Ke7 {[%clk
0:00:17.2]} 43. Rf4 {[%clk 0:00:11.6]} 43... g5 {[%clk 0:00:16.5]} 44. Rb7+
{[%clk 0:00:11.8]} 44... Kd6 {[%clk 0:00:16.9]} 45. Rff7 {[%clk 0:00:11.5]}
45... Rxa3 {[%clk 0:00:16.3]} 46. h4 {[%clk 0:00:11.6]} 46... g4 {[%clk
0:00:15.2]} 47. h5 {[%clk 0:00:11.3]} 47... Raa2 {[%clk 0:00:14.4]} 48. Rbd7+
{[%clk 0:00:11.4]} 48... Ke5 {[%clk 0:00:14.6]} 49. Rd4 {[%clk 0:00:11.2]} 49...
Rab2 {[%clk 0:00:13.7]} 50. Rxg4 {[%clk 0:00:11.4]} 50... Rxb3 {[%clk
0:00:13.9]} 51. Rgf4 {[%clk 0:00:11.7]} 51... Rbb2 {[%clk 0:00:13.7]} 52. Rh7
{[%clk 0:00:11.7]} 52... Kd5 {[%clk 0:00:12.8]} 53. Rxh6 {[%clk 0:00:11.8]}
53... e5 {[%clk 0:00:13.3]} 54. Rf5 {[%clk 0:00:11.9]} 54... Ke4 {[%clk
0:00:13.7]} 55. Rhf6 {[%clk 0:00:12.2]} 55... Rc3 {[%clk 0:00:13.1]} 56. Rf3
{[%clk 0:00:11.6]} 56... Rc1 {[%clk 0:00:11.4]} 57. h6 {[%clk 0:00:11.3]} 57...
Rbb1 {[%clk 0:00:11.9]} 58. Kh3 {[%clk 0:00:08.8]} 58... Rh1+ {[%clk 0:00:09.5]}
59. Kg4 {[%clk 0:00:08.9]} 59... Rh2 {[%clk 0:00:08.8]} 60. R3f5 {[%clk
0:00:07.3]} 60... Rbh1 {[%clk 0:00:08.8]} 61. f3+ {[%clk 0:00:07.6]} 61... Kxe3
{[%clk 0:00:09]} 62. Rxe5+ {[%clk 0:00:07.9]} 62... Kf2 {[%clk 0:00:09.7]} 63.
Ra5 {[%clk 0:00:06.2]} 63... Rxh6 {[%clk 0:00:04.4]} 64. Rxh6 {[%clk 0:00:05.8]}
64... Rxh6 {[%clk 0:00:04.9]} 65. Re5 {[%clk 0:00:05.4]} 65... Rg6+ {[%clk
0:00:04.4]} 66. Kf4 {[%clk 0:00:05.8]} 66... Rf6+ {[%clk 0:00:02.2]} 67. Rf5
{[%clk 0:00:05.7]} 67... Rb6 {[%clk 0:00:01]} 68. g4 {[%clk 0:00:06]} 68... Rb4+
{[%clk 0:00:01]} 69. Kg5 {[%clk 0:00:06]} 69... Kg3 {[%clk 0:00:01.9]} 70. Kh5
{[%clk 0:00:04.5]} 70... Rb8 {[%clk 0:00:02.7]} 71. g5 {[%clk 0:00:04.7]} 71...
Rh8+ {[%clk 0:00:01.8]} 72. Kg6 {[%clk 0:00:05.1]} 72... Kh4 {[%clk 0:00:02.3]}
73. Rf4+ {[%clk 0:00:05.6]} 73... Kh3 {[%clk 0:00:02.2]} 74. Rf7 {[%clk
0:00:05.9]} 74... Kg3 {[%clk 0:00:02.3]} 75. f4 {[%clk 0:00:05.8]} 75... Kg4
{[%clk 0:00:02.3]} 76. f5 {[%clk 0:00:06.1]} 76... Rg8+ {[%clk 0:00:02.7]} 77.
Rg7 {[%clk 0:00:06.3]} 77... Rf8 {[%clk 0:00:03]} 78. f6 {[%clk 0:00:06.7]}
78... Kf4 {[%clk 0:00:03.5]} 79. f7 {[%clk 0:00:07]} 79... Ke5 {[%clk
0:00:03.9]} 80. Rg8 {[%clk 0:00:07.5]} 1-0

[Event "Early-Titled-Tuesday-Blitz-June-18-2024"]
[Site "Chess.com"]
[Date "2024.06.18"]
[Round "2"]
[White "Rurep26"]
[Black "Juicy_Fork"]
[Result "1/2-1/2"]
[WhiteElo "2736"]
[BlackElo "2417"]
[TimeControl "180+1"]
[EndTime "8:20:07 PDT"]
[Termination "Game drawn - insufficient material"]

1. d4 {[%clk 0:03:00.9]} 1... Nf6 {[%clk 0:03:00.1]} 2. c4 {[%clk 0:03:00.6]}
2... e6 {[%clk 0:03:00.5]} 3. g3 {[%clk 0:03:00.3]} 3... d5 {[%clk 0:02:59.1]}
4. Bg2 {[%clk 0:03:00.9]} 4... Bb4+ {[%clk 0:02:58.8]} 5. Bd2 {[%clk 0:03:00.1]}
5... a5 {[%clk 0:02:59.1]} 6. Nf3 {[%clk 0:02:59.6]} 6... O-O {[%clk 0:02:58.8]}
7. O-O {[%clk 0:03:00]} 7... dxc4 {[%clk 0:02:59.1]} 8. Qc2 {[%clk 0:03:00.6]}
8... b5 {[%clk 0:02:58.1]} 9. a4 {[%clk 0:03:00.2]} 9... Bxd2 {[%clk 0:02:54.4]}
10. Nbxd2 {[%clk 0:02:59.7]} 10... c6 {[%clk 0:02:54.7]} 11. Ne5 {[%clk
0:02:50.4]} 11... Ra6 {[%clk 0:02:54.5]} 12. e3 {[%clk 0:02:43.7]} 12... Nfd7
{[%clk 0:02:49.3]} 13. Nef3 {[%clk 0:02:40.1]} 13... Re8 {[%clk 0:02:32.5]} 14.
h4 {[%clk 0:02:38.5]} 14... h6 {[%clk 0:02:30.4]} 15. Rfd1 {[%clk 0:02:37.6]}
15... Qc7 {[%clk 0:02:25.8]} 16. e4 {[%clk 0:02:33.8]} 16... e5 {[%clk
0:02:23.2]} 17. d5 {[%clk 0:02:28.4]} 17... Nc5 {[%clk 0:02:12.3]} 18. dxc6
{[%clk 0:02:24.5]} 18... Nxa4 {[%clk 0:02:04.5]} 19. b3 {[%clk 0:02:05.2]} 19...
cxb3 {[%clk 0:01:58.3]} 20. Qxb3 {[%clk 0:02:06.1]} 20... Qxc6 {[%clk
0:01:55.9]} 21. Rdc1 {[%clk 0:02:03.3]} 21... Qb7 {[%clk 0:01:45.4]} 22. Bf1
{[%clk 0:01:56.9]} 22... Rb6 {[%clk 0:01:25.8]} 23. Bxb5 {[%clk 0:01:49.5]}
23... Rxb5 {[%clk 0:01:25.9]} 24. Qxa4 {[%clk 0:01:50.1]} 24... Bg4 {[%clk
0:01:23.5]} 25. Rab1 {[%clk 0:01:35.8]} 25... Bd7 {[%clk 0:01:21.4]} 26. Rxb5
{[%clk 0:01:31.2]} 26... Bxb5 {[%clk 0:01:07.9]} 27. Qxa5 {[%clk 0:01:30.7]}
27... Nc6 {[%clk 0:01:06.9]} 28. Qc3 {[%clk 0:01:28.8]} 28... Rd8 {[%clk
0:01:00.9]} 29. Rb1 {[%clk 0:01:22.7]} 29... Nd4 {[%clk 0:00:55]} 30. Nxd4
{[%clk 0:01:14.9]} 30... Rxd4 {[%clk 0:00:53.7]} 31. Nf3 {[%clk 0:01:08.1]}
31... Rxe4 {[%clk 0:00:33.6]} 32. Qc5 {[%clk 0:01:07.6]} 32... Re2 {[%clk
0:00:14.8]} 33. Nxe5 {[%clk 0:01:07]} 33... Qe4 {[%clk 0:00:13.3]} 34. Qxb5
{[%clk 0:00:47.7]} 34... Qxe5 {[%clk 0:00:13.7]} 35. Qd3 {[%clk 0:00:38.4]}
35... Re1+ {[%clk 0:00:13.6]} 36. Rxe1 {[%clk 0:00:37.3]} 36... Qxe1+ {[%clk
0:00:14.5]} 37. Kg2 {[%clk 0:00:38.1]} 37... Qe6 {[%clk 0:00:15]} 38. Qd8+
{[%clk 0:00:35.9]} 38... Kh7 {[%clk 0:00:15.2]} 39. Qd3+ {[%clk 0:00:33.9]}
39... Qg6 {[%clk 0:00:13.5]} 40. Qf3 {[%clk 0:00:33.9]} 40... Qe6 {[%clk
0:00:12.8]} 41. h5 {[%clk 0:00:33.8]} 41... Qe5 {[%clk 0:00:08.7]} 42. Qxf7
{[%clk 0:00:31.8]} 42... Qe4+ {[%clk 0:00:07.1]} 43. Kh2 {[%clk 0:00:29.9]}
43... Qc2 {[%clk 0:00:05.1]} 44. Kh3 {[%clk 0:00:27.2]} 44... Qd1 {[%clk
0:00:04.7]} 45. Qf5+ {[%clk 0:00:26.2]} 45... Kg8 {[%clk 0:00:04.8]} 46. Kg2
{[%clk 0:00:21.9]} 46... Qd4 {[%clk 0:00:03.8]} 47. g4 {[%clk 0:00:19.1]} 47...
Qd2 {[%clk 0:00:03.8]} 48. Kg3 {[%clk 0:00:17.1]} 48... Qc3+ {[%clk 0:00:03.4]}
49. f3 {[%clk 0:00:17.3]} 49... Qe1+ {[%clk 0:00:03.5]} 50. Kf4 {[%clk
0:00:17.9]} 50... Qd2+ {[%clk 0:00:03.3]} 51. Ke5 {[%clk 0:00:18.4]} 51... Qe2+
{[%clk 0:00:03.9]} 52. Kd5 {[%clk 0:00:18.5]} 52... Qd2+ {[%clk 0:00:03.2]} 53.
Ke5 {[%clk 0:00:19.1]} 53... Qc3+ {[%clk 0:00:02.5]} 54. Kd5 {[%clk 0:00:18.1]}
54... Qa5+ {[%clk 0:00:02.4]} 55. Ke6 {[%clk 0:00:18.5]} 55... Qb6+ {[%clk
0:00:02.8]} 56. Ke7 {[%clk 0:00:18.4]} 56... Qc7+ {[%clk 0:00:02.8]} 57. Ke8
{[%clk 0:00:17]} 57... Qb8+ {[%clk 0:00:01.9]} 58. Kd7 {[%clk 0:00:17.4]} 58...
Qb7+ {[%clk 0:00:01.9]} 59. Ke6 {[%clk 0:00:17.9]} 59... Qc6+ {[%clk 0:00:02.1]}
60. Ke5 {[%clk 0:00:18.5]} 60... Qc5+ {[%clk 0:00:02.6]} 61. Ke4 {[%clk
0:00:19.4]} 61... Qc4+ {[%clk 0:00:03.2]} 62. Ke3 {[%clk 0:00:20.1]} 62... Qc3+
{[%clk 0:00:03.5]} 63. Qd3 {[%clk 0:00:20.8]} 63... Qe1+ {[%clk 0:00:04.1]} 64.
Kd4 {[%clk 0:00:20.6]} 64... Qf2+ {[%clk 0:00:04.1]} 65. Qe3 {[%clk 0:00:20.6]}
65... Qb2+ {[%clk 0:00:04.1]} 66. Ke4 {[%clk 0:00:21.3]} 66... Qb4+ {[%clk
0:00:04.2]} 67. Qd4 {[%clk 0:00:21.9]} 67... Qe1+ {[%clk 0:00:04.5]} 68. Kf5
{[%clk 0:00:19.9]} 68... Qf1 {[%clk 0:00:03]} 69. Qd5+ {[%clk 0:00:19.8]} 69...
Kh7 {[%clk 0:00:02.7]} 70. g5 {[%clk 0:00:19.8]} 70... Qb1+ {[%clk 0:00:02.7]}
71. Kg4 {[%clk 0:00:19.4]} 71... hxg5 {[%clk 0:00:03.6]} 72. Qf5+ {[%clk
0:00:17.2]} 72... Qxf5+ {[%clk 0:00:03.4]} 73. Kxf5 {[%clk 0:00:18.1]} 73... Kh6
{[%clk 0:00:03.3]} 74. Kg4 {[%clk 0:00:18.7]} 74... g6 {[%clk 0:00:03.9]} 75.
hxg6 {[%clk 0:00:15.2]} 75... Kxg6 {[%clk 0:00:04.8]} 76. f4 {[%clk 0:00:14.9]}
76... gxf4 {[%clk 0:00:05.7]} 77. Kxf4 {[%clk 0:00:15.8]} 1/2-1/2

[Event "Early-Titled-Tuesday-Blitz-June-18-2024"]
[Site "Chess.com"]
[Date "2024.06.18"]
[Round "2"]
[White "Vengea_nce"]
[Black "Fandorine"]
[Result "1-0"]
[WhiteElo "2661"]
[BlackElo "2955"]
[TimeControl "180+1"]
[EndTime "8:20:29 PDT"]
[Termination "Vengea_nce won on time"]

1. e4 {[%clk 0:03:00.9]} 1... c5 {[%clk 0:02:57.5]} 2. Nf3 {[%clk 0:03:00.9]}
2... Nc6 {[%clk 0:02:54.6]} 3. Bb5 {[%clk 0:03:00.3]} 3... g6 {[%clk 0:02:54.6]}
4. Bxc6 {[%clk 0:02:58.7]} 4... bxc6 {[%clk 0:02:55.5]} 5. d4 {[%clk 0:02:57]}
5... cxd4 {[%clk 0:02:54.9]} 6. Qxd4 {[%clk 0:02:56.9]} 6... f6 {[%clk
0:02:51.8]} 7. Be3 {[%clk 0:02:50.8]} 7... d6 {[%clk 0:02:46.2]} 8. c4 {[%clk
0:02:49.7]} 8... c5 {[%clk 0:02:41.4]} 9. Qd2 {[%clk 0:02:47.4]} 9... Rb8 {[%clk
0:02:38.5]} 10. Nc3 {[%clk 0:02:46.6]} 10... h5 {[%clk 0:02:23.3]} 11. O-O
{[%clk 0:02:42]} 11... Nh6 {[%clk 0:02:16.1]} 12. h4 {[%clk 0:02:24.4]} 12...
Ng4 {[%clk 0:02:11.3]} 13. Bf4 {[%clk 0:02:24.2]} 13... Bg7 {[%clk 0:01:55.6]}
14. Nh2 {[%clk 0:02:19.1]} 14... a6 {[%clk 0:01:33.3]} 15. b3 {[%clk 0:02:09.3]}
15... Nh6 {[%clk 0:01:16.5]} 16. Rad1 {[%clk 0:02:06.9]} 16... Nf7 {[%clk
0:01:16.6]} 17. Nd5 {[%clk 0:02:04.3]} 17... e6 {[%clk 0:01:08.4]} 18. Nc3
{[%clk 0:02:02.2]} 18... e5 {[%clk 0:01:06.6]} 19. Be3 {[%clk 0:01:55.8]} 19...
Be6 {[%clk 0:01:02]} 20. f4 {[%clk 0:01:52.5]} 20... exf4 {[%clk 0:01:02.2]} 21.
Bxf4 {[%clk 0:01:52.1]} 21... Rb6 {[%clk 0:00:55.9]} 22. Nd5 {[%clk 0:01:48.9]}
22... Rc6 {[%clk 0:00:50.8]} 23. Qf2 {[%clk 0:01:33.2]} 23... O-O {[%clk
0:00:49]} 24. Qg3 {[%clk 0:01:31]} 24... Kh7 {[%clk 0:00:49.3]} 25. Bd2 {[%clk
0:01:29.1]} 25... Bxd5 {[%clk 0:00:39.1]} 26. exd5 {[%clk 0:01:27.5]} 26... Rc7
{[%clk 0:00:39.1]} 27. Bc3 {[%clk 0:01:23.7]} 27... Ne5 {[%clk 0:00:24.5]} 28.
Ba5 {[%clk 0:01:23.3]} 28... Qc8 {[%clk 0:00:23]} 29. Bxc7 {[%clk 0:01:23.2]}
29... Qxc7 {[%clk 0:00:23.9]} 30. Nf3 {[%clk 0:01:23.2]} 30... Ng4 {[%clk
0:00:24.1]} 31. Rfe1 {[%clk 0:01:21.7]} 31... f5 {[%clk 0:00:23.8]} 32. Ng5+
{[%clk 0:01:20.3]} 32... Kg8 {[%clk 0:00:23.6]} 33. Ne6 {[%clk 0:01:20.7]} 33...
Qa5 {[%clk 0:00:23.6]} 34. Nxf8 {[%clk 0:01:19.7]} 34... Bxf8 {[%clk 0:00:24.1]}
35. a4 {[%clk 0:01:15.5]} 35... Qd8 {[%clk 0:00:11.9]} 36. Re6 {[%clk
0:01:13.9]} 36... Kh7 {[%clk 0:00:12.5]} 37. Qe1 {[%clk 0:01:10.9]} 37... Bg7
{[%clk 0:00:08.9]} 38. g3 {[%clk 0:01:10.2]} 38... Ne5 {[%clk 0:00:05.2]} 39.
Qe2 {[%clk 0:01:08.5]} 39... Qb8 {[%clk 0:00:04.9]} 40. Qe3 {[%clk 0:01:05]}
40... Ng4 {[%clk 0:00:03.8]} 41. Qg5 {[%clk 0:01:03.4]} 41... Ne5 {[%clk
0:00:03]} 42. Qe3 {[%clk 0:00:59.4]} 42... Ng4 {[%clk 0:00:03.1]} 43. Qd3 {[%clk
0:00:58.7]} 43... Ne5 {[%clk 0:00:03.2]} 44. Qc2 {[%clk 0:00:58.2]} 44... Nf3+
{[%clk 0:00:02.2]} 45. Kg2 {[%clk 0:00:58.4]} 45... Ne5 {[%clk 0:00:02.9]} 46.
Re1 {[%clk 0:00:57.4]} 46... Qb4 {[%clk 0:00:03]} 47. Re2 {[%clk 0:00:56.9]}
47... Qb8 {[%clk 0:00:03.7]} 48. Qc3 {[%clk 0:00:54]} 48... Qf8 {[%clk
0:00:03.9]} 49. Qa5 {[%clk 0:00:49.4]} 49... f4 {[%clk 0:00:03.8]} 50. Rf2
{[%clk 0:00:45.2]} 50... f3+ {[%clk 0:00:04.2]} 51. Kf1 {[%clk 0:00:44.6]} 51...
Qf5 {[%clk 0:00:04.5]} 52. Rxe5 {[%clk 0:00:30.5]} 52... Qd3+ {[%clk 0:00:01.5]}
53. Kg1 {[%clk 0:00:27.6]} 53... Bxe5 {[%clk 0:00:02.1]} 54. Qc7+ {[%clk
0:00:20.7]} 54... Kh6 {[%clk 0:00:02.1]} 55. Qd8 {[%clk 0:00:20.8]} 55... Qd1+
{[%clk 0:00:01.7]} 56. Kh2 {[%clk 0:00:20.1]} 56... Bd4 {[%clk 0:00:02.2]} 57.
Qf8+ {[%clk 0:00:18.8]} 57... Kh7 {[%clk 0:00:02.6]} 58. Qxf3 {[%clk 0:00:19]}
58... Qe1 {[%clk 0:00:02.1]} 59. Qf7+ {[%clk 0:00:18.8]} 59... Kh6 {[%clk
0:00:02.7]} 60. Qf8+ {[%clk 0:00:19.2]} 60... Bg7 {[%clk 0:00:03.3]} 61. Qf4+
{[%clk 0:00:19.8]} 61... Kh7 {[%clk 0:00:04]} 62. Qd2 {[%clk 0:00:19.8]} 62...
Qe4 {[%clk 0:00:03.9]} 63. Re2 {[%clk 0:00:20.1]} 63... Qb1 {[%clk 0:00:03.5]}
64. Qf4 {[%clk 0:00:20.1]} 64... Qxb3 {[%clk 0:00:03.2]} 65. Re7 {[%clk
0:00:20.1]} 65... Qc2+ {[%clk 0:00:02.7]} 66. Kh3 {[%clk 0:00:20.4]} 66... Qb1
{[%clk 0:00:03.1]} 67. Qf3 {[%clk 0:00:19.9]} 67... Qa1 {[%clk 0:00:02.7]} 68.
Rd7 {[%clk 0:00:19.6]} 68... Qxa4 {[%clk 0:00:02.9]} 69. Qf7 {[%clk 0:00:19.3]}
69... Qa1 {[%clk 0:00:03.1]} 70. Kh2 {[%clk 0:00:18]} 70... Qb2+ {[%clk
0:00:03.5]} 71. Kh3 {[%clk 0:00:18.2]} 71... Qa1 {[%clk 0:00:04]} 72. Qf3 {[%clk
0:00:18.2]} 72... Qe5 {[%clk 0:00:03.8]} 73. Ra7 {[%clk 0:00:17.9]} 73... Qa1
{[%clk 0:00:03.9]} 74. Ra8 {[%clk 0:00:17.8]} 74... a5 {[%clk 0:00:04.1]} 75.
Kg2 {[%clk 0:00:17.2]} 75... a4 {[%clk 0:00:03.4]} 76. Qf7 {[%clk 0:00:16.9]}
76... Qb2+ {[%clk 0:00:03.1]} 77. Kh3 {[%clk 0:00:16.5]} 77... Qb1 {[%clk
0:00:03]} 78. Qf3 {[%clk 0:00:15.2]} 78... Qc2 {[%clk 0:00:02.4]} 79. Qf1 {[%clk
0:00:13.7]} 79... a3 {[%clk 0:00:01.9]} 80. Rxa3 {[%clk 0:00:13.2]} 80... Qe4
{[%clk 0:00:02.5]} 81. Rf3 {[%clk 0:00:13]} 81... Qg4+ {[%clk 0:00:02.4]} 82.
Kg2 {[%clk 0:00:12.4]} 82... Qe4 {[%clk 0:00:02.9]} 83. Qd3 {[%clk 0:00:12.5]}
83... Qe1 {[%clk 0:00:02.5]} 84. Rf2 {[%clk 0:00:12.5]} 84... Qe5 {[%clk
0:00:02.3]} 85. Re2 {[%clk 0:00:12.6]} 85... Qa1 {[%clk 0:00:02.6]} 86. Qe4
{[%clk 0:00:12.4]} 86... Qd1 {[%clk 0:00:02.3]} 87. Qc2 {[%clk 0:00:11.4]} 87...
Qa1 {[%clk 0:00:01.9]} 88. Rf2 {[%clk 0:00:11.7]} 1-0